[Event "CZE-ch U14 2020"]
[Site "Kouty nad Desnou"]
[Date "2020.03.08"]
[Round "2.1"]
[White "Stalmach, Richard"]
[Black "Janous, Marek"]
[Result "1-0"]
[ECO "A50"]
[WhiteElo "2259"]
[BlackElo "1990"]
[Annotator "ChessBase"]
[PlyCount "113"]
[EventDate "2020.03.07"]
[EventCountry "CZE"]
[SourceTitle "playchess.com"]
[Source "ChessBase"]
[SourceQuality "1"]
[TimeControl "5400+30"]

1. d4 {[%emt 0:00:00]} Nf6 {[%emt 0:00:00]} 2. c4 {[%emt 0:00:00]} g6 {[%emt 0:00:00]} 3. h4 {[%emt 0:00:00]} c5 {[%emt 0:00:00]} 4. d5 {[%emt 0:00:00]} b5 {[%emt 0:00:09]} 5. cxb5 {[%emt 0:00:00]} a6 {[%emt 0:00:05]} 6. bxa6 {[%emt 0:00:01]} Bxa6 {[%emt 0:00:08]} 7. Nc3 {[%emt 0:00:03]} d6 {[%emt 0:00:52]} 8. e4 {[%emt 0:00:07]} Bxf1 {[%emt 0:00:06]} 9. Kxf1 {[%emt 0:00:03]} Nbd7 {[%emt 0:00:50]} 10. g3 {[%emt 0:00:20]} Bg7 {[%emt 0:00:20]} 11. Nf3 {[%emt 0:00:05]} O-O {[%emt 0:01:53]} 12. Kg2 {[%emt 0:00:12]} Qa5 {[%emt 0:03:12]} 13. a4 {[%emt 0:00:21]} Rfb8 {[%emt 0:00:43]} 14. Qc2 {[%emt 0:11:31]} Nb6 {[%emt 0:08:38]} 15. Bg5 {[%emt 0:15:22]} Qb4 {[%emt 0:14:16]} 16. Nd2 {[%emt 0:08:02]} h6 {[%emt 0:09:06]} 17. Bf4 {[%emt 0:01:43]} Nh5 {[%emt 0:00:43]} 18. Ra3 {[%emt 0:07:40]} c4 {[%emt 0:22:31]} 19. Rb1 {[%emt 0:08:59]} Nxf4+ {[%emt 0:03:15]} 20. gxf4 {[%emt 0:00:19]} Qc5 {[%emt 0:05:23]} 21. Nd1 {[%emt 0:05:39]} Rc8 {[%emt 0:04:55]} 22. Ne3 {[%emt 0:09:03]} c3 {[%emt 0:00:39]} 23. b4 {[%emt 0:00:59]} Qc7 {[%emt 0:04:14]} 24. a5 {[%emt 0:09:54]} Qd7 {[%emt 0:04:52]} 25. Ndf1 {[%emt 0:02:49]} Qb5 {[%emt 0:02:29]} 26. Rab3 {[%emt 0:01:36]} Nc4 {[%emt 0:03:13]} 27. Nxc4 {[%emt 0:00:26]} Rxc4 {[%emt 0:00:06]} 28. Ne3 {[%emt 0:00:38]} Rc7 {[%emt 0:00:17]} 29. Kf3 {[%emt 0:01:31]} Qd7 {[%emt 0:01:27]} 30. Ra3 {[%emt 0:04:34]} Qb5 {[%emt 0:00:31]} 31. Ra2 {[%emt 0:02:40]} Bd4 {[%emt 0:02:52]} 32. Qe2 {[%emt 0:01:41]} Qxe2+ {[%emt 0:00:34]} 33. Kxe2 {[%emt 0:00:01]} Bxe3 {[%emt 0:00:18]} 34. fxe3 {[%emt 0:00:27]} c2 {[%emt 0:00:07]} 35. Rc1 {[%emt 0:00:02]} Rc4 {[%emt 0:01:04]} 36. Rb2 {[%emt 0:01:05]} Rb8 {[%emt 0:00:59]} 37. Rbxc2 {[%emt 0:06:22]} Rcxb4 {[%emt 0:00:47]} 38. Rc8+ {[%emt 0:01:32]} Rxc8 {[%emt 0:00:21]} 39. Rxc8+ {[%emt 0:00:01]} Kg7 {[%emt 0:00:08]} 40. e5 {[%emt 0:03:37]} Rb5 {[%emt 0:04:32]} 41. a6 {[%emt 0:00:00]} Ra5 {[%emt 0:00:00]} 42. Re8 {[%emt 0:00:00]} Rxa6 {[%emt 0:00:00]} 43. Rxe7 {[%emt 0:00:00]} Kf8 {[%emt 0:00:00]} 44. Rd7 {[%emt 0:00:00]} dxe5 {[%emt 0:00:00]} 45. fxe5 {[%emt 0:00:00]} Ke8 {[%emt 0:00:00]} 46. Rb7 {[%emt 0:00:00]} Ra4 {[%emt 0:00:00]} 47. d6 {[%emt 0:00:00]} Ra6 {[%emt 0:00:00]} 48. Rb8+ {[%emt 0:00:00]} Kd7 {[%emt 0:00:00]} 49. Rf8 {[%emt 0:00:00]} f5 {[%emt 0:00:00]} 50. Rf7+ {[%emt 0:00:00]} Ke8 {[%emt 0:00:00]} 51. Rg7 {[%emt 0:00:00]} g5 {[%emt 0:00:00]} 52. hxg5 {[%emt 0:00:00]} hxg5 {[%emt 0:00:00]} 53. Rxg5 {[%emt 0:00:00]} Kf7 {[%emt 0:00:00]} 54. Rxf5+ {[%emt 0:00:00]} Ke6 {[%emt 0:00:00]} 55. Rf8 {[%emt 0:00:00]} Ra7 {[%emt 0:00:00]} 56. Re8+ {[%emt 0:00:00]} Kd5 {[%emt 0:00:00]} 57. Re7 {[%emt 0:00:00]} 1-0

[Event "CZE-ch U14 2020"]
[Site "Kouty nad Desnou"]
[Date "2020.03.08"]
[Round "2.2"]
[White "Paseka, Matyas"]
[Black "Hrbek, Stepan"]
[Result "0-1"]
[ECO "C71"]
[WhiteElo "2012"]
[BlackElo "2142"]
[Annotator "ChessBase"]
[PlyCount "68"]
[EventDate "2020.03.07"]
[EventCountry "CZE"]
[SourceTitle "playchess.com"]
[Source "ChessBase"]
[SourceQuality "1"]
[TimeControl "5400+30"]

1. e4 {[%emt 0:00:00]} e5 {[%emt 0:00:00]} 2. Nf3 {[%emt 0:00:00]} Nc6 {[%emt 0:00:00]} 3. Bb5 {[%emt 0:00:00]} a6 {[%emt 0:00:30]} 4. Ba4 {[%emt 0:00:04]} d6 {[%emt 0:00:19]} 5. d4 {[%emt 0:07:00]} b5 {[%emt 0:04:30]} 6. Bb3 {[%emt 0:00:16]} Nxd4 {[%emt 0:00:21]} 7. Nxd4 {[%emt 0:13:54]} exd4 {[%emt 0:00:06]} 8. Qh5 {[%emt 0:00:45]} Qd7 {[%emt 0:09:07]} 9. Bg5 {[%emt 0:07:04]} Bb7 {[%emt 0:14:17]} 10. O-O {[%emt 0:01:55]} g6 {[%emt 0:16:04]} 11. Qf3 {[%emt 0:06:30]} Bg7 {[%emt 0:00:19]} 12. c3 {[%emt 0:00:49]} h6 {[%emt 0:02:00]} 13. Bh4 {[%emt 0:06:00]} g5 {[%emt 0:00:20]} 14. Bg3 {[%emt 0:00:09]} Nf6 {[%emt 0:00:10]} 15. Re1 {[%emt 0:01:08]} O-O {[%emt 0:06:00]} 16. cxd4 {[%emt 0:07:47]} Nxe4 {[%emt 0:00:54]} 17. Nc3 {[%emt 0:09:43]} Nxg3 {[%emt 0:10:58]} 18. Qxb7 {[%emt 0:02:38]} Nf5 {[%emt 0:02:20]} 19. Nd5 {[%emt 0:09:39]} Rab8 {[%emt 0:15:07]} 20. Qa7 {[%emt 0:07:39]} Rfe8 {[%emt 0:07:34]} 21. Rec1 {[%emt 0:04:17]} Ra8 {[%emt 0:05:49]} 22. Qxc7 {[%emt 0:01:34]} Ra7 {[%emt 0:00:19]} 23. Qxd7 Rxd7 {[%emt 0:00:04]} 24. Re1 {[%emt 0:08:33]} Rdd8 {[%emt 0:02:23]} 25. Nc7 {[%emt 0:03:07]} Rxe1+ {[%emt 0:00:28]} 26. Rxe1 {[%emt 0:00:03]} Nxd4 {[%emt 0:00:21]} 27. Bd5 {[%emt 0:00:28]} Rc8 {[%emt 0:01:56]} 28. Re7 {[%emt 0:01:54]} Rf8 {[%emt 0:01:04]} 29. Ne8 {[%emt 0:01:03]} Nf5 {[%emt 0:00:24]} 30. Re2 {[%emt 0:00:18]} Be5 {[%emt 0:00:35]} 31. Bc6 {[%emt 0:00:42]} Nd4 {[%emt 0:00:16]} 32. Rxe5 {[%emt 0:00:28]} dxe5 {[%emt 0:00:06]} 33. Bd7 {[%emt 0:00:23]} f5 {[%emt 0:00:34]} 34. Nc7 {[%emt 0:00:38]} Rd8 {[%emt 0:00:28]} 0-1

[Event "CZE-ch U14 2020"]
[Site "Kouty nad Desnou"]
[Date "2020.03.08"]
[Round "2.3"]
[White "Hak, David"]
[Black "Kures, Michael"]
[Result "1-0"]
[ECO "E91"]
[WhiteElo "2120"]
[BlackElo "1943"]
[Annotator "ChessBase"]
[PlyCount "73"]
[EventDate "2020.03.07"]
[EventCountry "CZE"]
[SourceTitle "playchess.com"]
[Source "ChessBase"]
[SourceQuality "1"]
[TimeControl "5400+30"]

1. d4 {[%emt 0:00:00]} Nf6 {[%emt 0:00:30]} 2. c4 {[%emt 0:00:00]} g6 {[%emt 0:01:18]} 3. Nc3 {[%emt 0:00:00]} Bg7 {[%emt 0:01:26]} 4. e4 {[%emt 0:00:01]} d6 {[%emt 0:00:16]} 5. Nf3 {[%emt 0:00:11]} O-O {[%emt 0:01:00]} 6. Be2 {[%emt 0:00:21]} Nbd7 {[%emt 0:02:25]} 7. O-O {[%emt 0:00:56]} e5 {[%emt 0:01:46]} 8. Be3 {[%emt 0:00:24]} Ng4 {[%emt 0:01:17]} 9. Bg5 {[%emt 0:00:11]} f6 {[%emt 0:01:44]} 10. Bh4 {[%emt 0:03:31]} g5 {[%emt 0:03:03]} 11. Bg3 {[%emt 0:00:37]} Nh6 {[%emt 0:00:34]} 12. h4 {[%emt 0:08:48]} Nf7 {[%emt 0:04:03]} 13. d5 {[%emt 0:06:24]} a5 {[%emt 0:01:56]} 14. a3 {[%emt 0:00:54]} Nb8 {[%emt 0:03:53]} 15. hxg5 {[%emt 0:11:12]} fxg5 {[%emt 0:00:54]} 16. Nh2 {[%emt 0:03:11]} Nh6 {[%emt 0:02:09]} 17. Ng4 {[%emt 0:05:26]} Nxg4 {[%emt 0:03:50]} 18. Bxg4 {[%emt 0:00:05]} Nd7 {[%emt 0:00:18]} 19. Be6+ {[%emt 0:08:07]} Kh8 {[%emt 0:00:17]} 20. b4 {[%emt 0:01:48]} Nf6 {[%emt 0:00:33]} 21. c5 {[%emt 0:01:35]} Bxe6 {[%emt 0:01:17]} 22. dxe6 {[%emt 0:01:14]} axb4 {[%emt 0:00:37]} 23. axb4 {[%emt 0:00:50]} Rxa1 {[%emt 0:00:48]} 24. Qxa1 {[%emt 0:00:04]} dxc5 {[%emt 0:00:45]} 25. Bxe5 {[%emt 0:02:14]} Qe7 {[%emt 0:05:00]} 26. Nd5 {[%emt 0:04:59]} Qxe6 {[%emt 0:01:44]} 27. Nxc7 {[%emt 0:01:01]} Qc6 {[%emt 0:02:50]} 28. bxc5 {[%emt 0:16:10]} Rf7 {[%emt 0:04:11]} 29. Rd1 {[%emt 0:06:15]} h6 {[%emt 0:09:57]} 30. Rd6 {[%emt 0:08:00]} Qxc7 {[%emt 0:36:23]} 31. Rxf6 {[%emt 0:00:37]} Bxf6 {[%emt 0:01:24]} 32. Qa8+ {[%emt 0:00:09]} Kg7 {[%emt 0:00:02]} 33. Bxc7 {[%emt 0:00:05]} Rxc7 {[%emt 0:00:04]} 34. Qa5 {[%emt 0:01:08]} Be5 {[%emt 0:00:27]} 35. g3 {[%emt 0:03:37]} Rc6 {[%emt 0:00:11]} 36. Qb5 {[%emt 0:00:31]} Rc7 {[%emt 0:00:04]} 37. c6 {[%emt 0:00:14]} 1-0

[Event "CZE-ch U14 2020"]
[Site "Kouty nad Desnou"]
[Date "2020.03.08"]
[Round "2.4"]
[White "Winter, Ondrej"]
[Black "Petricek, Lukas"]
[Result "0-1"]
[ECO "B90"]
[WhiteElo "1896"]
[BlackElo "2106"]
[Annotator "ChessBase"]
[PlyCount "100"]
[EventDate "2020.03.07"]
[EventCountry "CZE"]
[SourceTitle "playchess.com"]
[Source "ChessBase"]
[SourceQuality "1"]
[TimeControl "5400+30"]

1. e4 {[%emt 0:00:00]} c5 {[%emt 0:00:00]} 2. Nf3 {[%emt 0:00:00]} d6 {[%emt 0:00:00]} 3. d4 {[%emt 0:00:00]} cxd4 {[%emt 0:00:01]} 4. Nxd4 {[%emt 0:00:00]} Nf6 {[%emt 0:00:07]} 5. Nc3 {[%emt 0:00:00]} a6 {[%emt 0:00:07]} 6. Be3 {[%emt 0:00:00]} e6 {[%emt 0:00:06]} 7. Be2 {[%emt 0:02:46]} Be7 {[%emt 0:00:18]} 8. O-O {[%emt 0:04:07]} O-O {[%emt 0:01:38]} 9. f4 {[%emt 0:01:13]} Qc7 {[%emt 0:00:36]} 10. Kh1 {[%emt 0:10:19]} b5 {[%emt 0:01:48]} 11. Bf3 {[%emt 0:00:36]} Bb7 {[%emt 0:00:06]} 12. a3 {[%emt 0:16:23]} Nc6 {[%emt 0:08:48]} 13. Nb3 {[%emt 0:05:29]} Nd7 {[%emt 0:06:06]} 14. Qd2 {[%emt 0:10:53]} Nb6 {[%emt 0:13:15]} 15. Be2 {[%emt 0:04:28]} Rac8 {[%emt 0:15:04]} 16. Bd3 {[%emt 0:05:32]} Nd7 {[%emt 0:05:48]} 17. Qf2 {[%emt 0:03:41]} Na5 {[%emt 0:02:27]} 18. Nxa5 {[%emt 0:06:11]} Qxa5 {[%emt 0:00:07]} 19. Rad1 {[%emt 0:02:55]} Qc7 {[%emt 0:04:36]} 20. Qg3 {[%emt 0:00:51]} Bf6 {[%emt 0:01:13]} 21. Qh3 {[%emt 0:05:04]} g6 {[%emt 0:12:26]} 22. f5 {[%emt 0:07:09]} Rfe8 {[%emt 0:07:45]} 23. fxg6 {[%emt 0:04:09]} hxg6 {[%emt 0:01:03]} 24. Bf4 {[%emt 0:01:28]} Be5 {[%emt 0:02:15]} 25. Bg5 {[%emt 0:03:16]} Bg7 {[%emt 0:06:55]} 26. Bf4 {[%emt 0:01:23]} Ne5 {[%emt 0:00:24]} 27. Qg3 {[%emt 0:00:49]} Red8 {[%emt 0:03:36]} 28. h4 {[%emt 0:01:23]} Nxd3 {[%emt 0:02:20]} 29. Rxd3 {[%emt 0:01:12]} Be5 {[%emt 0:00:04]} 30. Rdf3 {[%emt 0:00:32]} Rd7 {[%emt 0:00:15]} 31. h5 {[%emt 0:00:15]} Bxf4 {[%emt 0:04:47]} 32. Rxf4 {[%emt 0:00:38]} Kg7 {[%emt 0:00:22]} 33. hxg6 {[%emt 0:00:50]} fxg6 {[%emt 0:00:07]} 34. Rf6 {[%emt 0:02:07]} Rh8+ {[%emt 0:00:09]} 35. Kg1 {[%emt 0:00:04]} Qc5+ {[%emt 0:00:12]} 36. R1f2 {[%emt 0:00:36]} Qh5 {[%emt 0:00:19]} 37. Kf1 {[%emt 0:00:04]} Re8 {[%emt 0:01:02]} 38. Qf4 {[%emt 0:00:56]} g5 {[%emt 0:00:34]} 39. Qg3 {[%emt 0:00:48]} Bxe4 {[%emt 0:00:19]} 40. Qe3 {[%emt 0:00:32]} Bf5 {[%emt 0:00:20]} 41. R6xf5 {[%emt 0:01:08]} exf5 {[%emt 0:00:07]} 42. Qd4+ {[%emt 0:00:05]} Kg6 {[%emt 0:00:32]} 43. Re2 {[%emt 0:00:40]} Rxe2 {[%emt 0:00:15]} 44. Nxe2 {[%emt 0:00:06]} Qh1+ {[%emt 0:00:59]} 45. Ng1 {[%emt 0:00:04]} Qh4 {[%emt 0:01:06]} 46. Qd1 {[%emt 0:00:59]} Qf4+ {[%emt 0:00:31]} 47. Nf3 {[%emt 0:00:16]} g4 {[%emt 0:00:16]} 48. Qe1 {[%emt 0:00:50]} Qc4+ {[%emt 0:00:34]} 49. Kg1 {[%emt 0:00:05]} gxf3 {[%emt 0:00:17]} 50. Qg3+ {[%emt 0:00:34]} Qg4 {[%emt 0:00:06]} 0-1

[Event "CZE-ch U14 2020"]
[Site "Kouty nad Desnou"]
[Date "2020.03.08"]
[Round "2.6"]
[White "Mrazek, Roman"]
[Black "Smolik, Jachym"]
[Result "0-1"]
[ECO "A45"]
[WhiteElo "1839"]
[BlackElo "2025"]
[Annotator "ChessBase"]
[PlyCount "56"]
[EventDate "2020.03.07"]
[EventCountry "CZE"]
[SourceTitle "playchess.com"]
[Source "ChessBase"]
[SourceQuality "1"]
[TimeControl "5400+30"]

1. d4 {[%emt 0:00:00]} Nf6 {[%emt 0:00:00]} 2. Bf4 {[%emt 0:00:00]} e6 {[%emt 0:00:00]} 3. e3 {[%emt 0:00:28]} c5 {[%emt 0:00:06]} 4. c3 {[%emt 0:01:15]} Qb6 {[%emt 0:01:25]} 5. Qb3 {[%emt 0:00:50]} d5 {[%emt 0:01:48]} 6. h3 {[%emt 0:01:40]} Nc6 {[%emt 0:03:16]} 7. Nd2 {[%emt 0:01:27]} Be7 {[%emt 0:05:45]} 8. Ngf3 {[%emt 0:03:59]} c4 {[%emt 0:03:02]} 9. Qc2 {[%emt 0:01:07]} Qd8 {[%emt 0:05:16]} 10. Be2 {[%emt 0:02:32]} Bd7 {[%emt 0:04:21]} 11. O-O {[%emt 0:01:55]} b5 {[%emt 0:01:40]} 12. e4 {[%emt 0:02:44]} a5 {[%emt 0:09:12]} 13. b3 {[%emt 0:03:48]} a4 {[%emt 0:08:07]} 14. e5 {[%emt 0:04:57]} Ng8 {[%emt 0:02:32]} 15. Bh2 {[%emt 0:02:24]} Nh6 {[%emt 0:02:50]} 16. Ne1 {[%emt 0:01:24]} axb3 {[%emt 0:00:29]} 17. Qb1 {[%emt 0:01:52]} Qa5 {[%emt 0:00:27]} 18. Nef3 {[%emt 0:03:03]} bxa2 {[%emt 0:00:47]} 19. Qc2 {[%emt 0:01:55]} Qa4 {[%emt 0:01:34]} 20. Qb2 {[%emt 0:00:48]} b4 {[%emt 0:01:50]} 21. cxb4 {[%emt 0:00:59]} Nxb4 {[%emt 0:02:03]} 22. Rfc1 {[%emt 0:00:44]} Qa3 {[%emt 0:00:32]} 23. Qxa3 {[%emt 0:00:35]} Rxa3 {[%emt 0:00:08]} 24. Bd1 {[%emt 0:00:25]} O-O {[%emt 0:02:57]} 25. Ne1 {[%emt 0:00:57]} Bg5 {[%emt 0:03:54]} 26. f4 {[%emt 0:00:19]} Be7 {[%emt 0:00:16]} 27. Kf2 {[%emt 0:01:22]} Nf5 {[%emt 0:00:21]} 28. Nf1 {[%emt 0:00:38]} Nxd4 {[%emt 0:00:52]} 0-1

[Event "CZE-ch U14 2020"]
[Site "Kouty nad Desnou"]
[Date "2020.03.08"]
[Round "2.7"]
[White "Hlavina, Matous"]
[Black "Mohapl, Tomas"]
[Result "1-0"]
[ECO "B32"]
[WhiteElo "1986"]
[BlackElo "1654"]
[Annotator "ChessBase"]
[PlyCount "41"]
[EventDate "2020.03.07"]
[EventCountry "CZE"]
[SourceTitle "playchess.com"]
[Source "ChessBase"]
[SourceQuality "1"]
[TimeControl "5400+30"]

1. e4 {[%emt 0:00:00]} c5 {[%emt 0:00:00]} 2. Nf3 {[%emt 0:00:00]} Nc6 {[%emt 0:00:00]} 3. d4 {[%emt 0:00:00]} cxd4 {[%emt 0:00:00]} 4. Nxd4 {[%emt 0:00:21]} e5 {[%emt 0:00:05]} 5. Nb5 {[%emt 0:00:51]} d6 {[%emt 0:00:44]} 6. N1c3 {[%emt 0:00:20]} a6 {[%emt 0:00:13]} 7. Na3 {[%emt 0:00:20]} b5 {[%emt 0:00:43]} 8. Nd5 {[%emt 0:00:23]} Nge7 {[%emt 0:00:59]} 9. c4 {[%emt 0:01:19]} bxc4 {[%emt 0:17:36]} 10. Bxc4 {[%emt 0:08:03]} Be6 {[%emt 0:04:24]} 11. O-O {[%emt 0:05:58]} Ng6 {[%emt 0:07:38]} 12. Be3 {[%emt 0:02:31]} Bxd5 {[%emt 0:10:18]} 13. Bxd5 {[%emt 0:03:41]} Qd7 {[%emt 0:08:47]} 14. Rc1 {[%emt 0:04:04]} Nge7 {[%emt 0:02:07]} 15. Rxc6 {[%emt 0:08:01]} Nxc6 {[%emt 0:01:45]} 16. Qa4 {[%emt 0:00:23]} Rc8 {[%emt 0:03:45]} 17. Rc1 {[%emt 0:00:35]} Ke7 {[%emt 0:05:55]} 18. Bxc6 {[%emt 0:01:40]} Qc7 {[%emt 0:00:56]} 19. Qxa6 {[%emt 0:00:46]} Rb8 {[%emt 0:03:48]} 20. Nb5 {[%emt 0:00:41]} Qd8 {[%emt 0:00:54]} 21. Bg5+ {[%emt 0:00:32]} 1-0

[Event "CZE-ch U14 2020"]
[Site "Kouty nad Desnou"]
[Date "2020.03.08"]
[Round "2.8"]
[White "Richter, Rudolf"]
[Black "Vaclavik, Jan"]
[Result "0-1"]
[ECO "E91"]
[WhiteElo "1555"]
[BlackElo "1791"]
[Annotator "NA"]
[PlyCount "104"]
[EventDate "2020.03.07"]
[EventCountry "CZE"]
[SourceTitle "playchess.com"]
[Source "ChessBase"]
[SourceQuality "1"]
[TimeControl "5400+30"]

1. d4 {[%emt 0:00:00]} Nf6 {[%emt 0:00:09]} 2. c4 {[%emt 0:01:39]} g6 {[%emt 0:00:30]} 3. Nc3 {[%emt 0:01:33]} Bg7 {[%emt 0:00:17]} 4. e4 {[%emt 0:00:41]} d6 {[%emt 0:00:08]} 5. Nf3 {[%emt 0:00:26]} O-O {[%emt 0:00:06]} 6. Be2 {[%emt 0:00:14]} Nbd7 {[%emt 0:00:08]} 7. O-O {[%emt 0:01:40]} e5 {[%emt 0:06:36]} 8. dxe5 {[%emt 0:02:41]} dxe5 {[%emt 0:03:15]} 9. Bg5 {[%emt 0:08:59]} h6 {[%emt 0:23:44]} 10. Bh4 {[%emt 0:03:10]} c6 {[%emt 0:23:21]} 11. Qc2 {[%emt 0:05:55]} Qe7 {[%emt 0:02:56]} 12. a3 {[%emt 0:05:46]} a5 {[%emt 0:04:31]} 13. Rab1 {[%emt 0:04:53]} g5 {[%emt 0:08:47]} 14. Bg3 {[%emt 0:00:44]} Ne8 {[%emt 0:00:36]} 15. b4 {[%emt 0:03:27]} Nc7 {[%emt 0:02:17]} 16. c5 {[%emt 0:03:11]} Ne6 {[%emt 0:07:33]} 17. h3 {[%emt 0:10:44]} Nf4 {[%emt 0:03:45]} 18. Bxf4 {[%emt 0:05:16]} exf4 19. Rbd1 {[%emt 0:10:42]} Ne5 {[%emt 0:04:13]} 20. Nxe5 {[%emt 0:07:18]} Qxe5 {[%emt 0:00:20]} 21. Na4 {[%emt 0:06:12]} axb4 {[%emt 0:02:50]} 22. axb4 {[%emt 0:00:53]} Be6 {[%emt 0:01:31]} 23. Nb6 {[%emt 0:02:10]} Ra2 {[%emt 0:01:13]} 24. Qd3 {[%emt 0:01:35]} Qc3 {[%emt 0:02:22]} 25. Rb1 {[%emt 0:03:36]} Qc2 {[%emt 0:00:50]} 26. Qxc2 {[%emt 0:02:43]} Rxc2 {[%emt 0:00:01]} 27. Bg4 {[%emt 0:01:58]} Bxg4 {[%emt 0:00:53]} 28. hxg4 {[%emt 0:00:07]} Bd4 29. Rbc1 {[%emt 0:02:07]} Bxf2+ {[%emt 0:00:44]} 30. Kh1 {[%emt 0:01:25]} Rxc1 {[%emt 0:00:16]} 31. Rxc1 {[%emt 0:00:10]} Be3 {[%emt 0:00:06]} 32. Rd1 {[%emt 0:00:20]} Re8 {[%emt 0:00:55]} 33. Nd7 {[%emt 0:00:23]} Kg7 {[%emt 0:00:07]} 34. e5 {[%emt 0:00:34]} Ra8 {[%emt 0:01:23]} 35. Nb6 {[%emt 0:00:44]} Ra2 {[%emt 0:00:32]} 36. Nc4 {[%emt 0:00:32]} Rc2 {[%emt 0:00:30]} 37. Nd6 {[%emt 0:00:49]} Rb2 {[%emt 0:00:29]} 38. Nf5+ {[%emt 0:01:00]} Kh7 {[%emt 0:00:11]} 39. Nd6 {[%emt 0:00:53]} Rxb4 {[%emt 0:00:37]} 40. Nxf7 {[%emt 0:00:24]} Bxc5 {[%emt 0:00:30]} 41. Nd6 {[%emt 0:00:25]} Rd4 {[%emt 0:00:43]} 42. Rxd4 {[%emt 0:01:15]} Bxd4 {[%emt 0:00:02]} 43. e6 {[%emt 0:00:32]} Bf6 {[%emt 0:00:22]} 44. Nxb7 {[%emt 0:00:00]} Kg7 {[%emt 0:00:00]} 45. Nd6 {[%emt 0:00:00]} Be7 {[%emt 0:00:00]} 46. Nf5+ {[%emt 0:00:00]} Kf6 {[%emt 0:00:00]} 47. Nxh6 {[%emt 0:00:00]} Kxe6 {[%emt 0:00:00]} 48. Nf5 {[%emt 0:00:00]} Bc5 {[%emt 0:00:00]} 49. Ng7+ {[%emt 0:00:00]} Ke5 {[%emt 0:00:00]} 50. Ne8 {[%emt 0:00:00]} Be3 {[%emt 0:00:00]} 51. Nc7 {[%emt 0:00:00]} c5 {[%emt 0:00:00]} 52. Nb5 {[%emt 0:00:00]} c4 {[%emt 0:00:00]} 0-1

[Event "CZE-ch U14 2020"]
[Site "Kouty nad Desnou"]
[Date "2020.03.08"]
[Round "2.9"]
[White "Lang, Simon"]
[Black "Licka, Denis"]
[Result "1-0"]
[ECO "B96"]
[WhiteElo "1779"]
[BlackElo "1594"]
[Annotator "NA"]
[PlyCount "49"]
[EventDate "2020.03.07"]
[EventCountry "CZE"]
[SourceTitle "playchess.com"]
[Source "ChessBase"]
[SourceQuality "1"]
[TimeControl "5400+30"]

1. e4 {[%emt 0:00:00]} c5 {[%emt 0:00:00]} 2. Nf3 {[%emt 0:01:23]} d6 {[%emt 0:00:00]} 3. d4 {[%emt 0:01:06]} cxd4 {[%emt 0:00:00]} 4. Nxd4 {[%emt 0:00:59]} Nf6 {[%emt 0:00:01]} 5. Nc3 {[%emt 0:01:36]} a6 {[%emt 0:00:07]} 6. Bg5 {[%emt 0:01:15]} e6 {[%emt 0:00:09]} 7. f4 {[%emt 0:01:43]} h6 {[%emt 0:00:13]} 8. Bh4 {[%emt 0:01:53]} Be7 {[%emt 0:00:07]} 9. Qf3 {[%emt 0:05:37]} Nbd7 {[%emt 0:01:15]} 10. O-O-O {[%emt 0:02:36]} Qc7 {[%emt 0:00:39]} 11. Bf2 {[%emt 0:05:26]} Rb8 {[%emt 0:25:09]} 12. g4 {[%emt 0:08:29]} b5 {[%emt 0:13:56]} 13. g5 {[%emt 0:05:13]} hxg5 {[%emt 0:02:26]} 14. fxg5 {[%emt 0:01:08]} Ne5 {[%emt 0:01:10]} 15. Qe2 {[%emt 0:15:50]} Nfg4 {[%emt 0:12:10]} 16. Bg2 {[%emt 0:06:41]} Bxg5+ {[%emt 0:11:04]} 17. Kb1 {[%emt 0:00:21]} Nxf2 {[%emt 0:01:01]} 18. Qxf2 {[%emt 0:00:12]} Nc4 {[%emt 0:04:52]} 19. e5 {[%emt 0:09:28]} Nxe5 {[%emt 0:18:03]} 20. Rhf1 {[%emt 0:02:48]} d5 {[%emt 0:07:01]} 21. Qg3 {[%emt 0:01:14]} Bf6 {[%emt 0:00:19]} 22. Bxd5 {[%emt 0:00:28]} exd5 {[%emt 0:00:46]} 23. Nxd5 {[%emt 0:00:09]} Qd6 {[%emt 0:00:30]} 24. Nf3 {[%emt 0:04:17]} Qe6 {[%emt 0:00:31]} 25. Nc7+ {[%emt 0:00:20] Qd6 Nd5 Rg8 Qe1} 1-0

[Event "CZE-ch U14 2020"]
[Site "Kouty nad Desnou"]
[Date "2020.03.08"]
[Round "2.10"]
[White "Tajovsky, Simon"]
[Black "Stocek, Martin"]
[Result "0-1"]
[ECO "E81"]
[WhiteElo "1512"]
[BlackElo "1772"]
[Annotator "NA"]
[PlyCount "112"]
[EventDate "2020.03.07"]
[EventCountry "CZE"]
[SourceTitle "playchess.com"]
[Source "ChessBase"]
[SourceQuality "1"]
[TimeControl "5400+30"]

1. d4 {[%emt 0:00:00]} Nf6 {[%emt 0:00:00]} 2. c4 {[%emt 0:00:00]} d6 {[%emt 0:00:00]} 3. Nc3 {[%emt 0:00:00]} g6 {[%emt 0:00:00]} 4. e4 {[%emt 0:00:00]} Bg7 {[%emt 0:00:00]} 5. f3 {[%emt 0:00:00]} O-O {[%emt 0:00:00]} 6. Be3 {[%emt 0:00:00]} Nfd7 {[%emt 0:00:52]} 7. Qd2 {[%emt 0:02:18]} c5 {[%emt 0:00:43]} 8. d5 {[%emt 0:00:22]} Ne5 {[%emt 0:11:01]} 9. Be2 {[%emt 0:01:52]} Qb6 {[%emt 0:07:15]} 10. Rc1 {[%emt 0:04:34]} Qb4 {[%emt 0:04:49]} 11. Nb5 {[%emt 0:04:47]} Qxd2+ {[%emt 0:04:10]} 12. Bxd2 {[%emt 0:00:12]} a6 {[%emt 0:05:58]} 13. Nc3 {[%emt 0:02:36]} Bd7 {[%emt 0:02:06]} 14. f4 {[%emt 0:05:38]} Ng4 {[%emt 0:00:54]} 15. h3 {[%emt 0:00:58]} Nf6 {[%emt 0:00:37]} 16. Nf3 {[%emt 0:00:35]} b5 {[%emt 0:04:36]} 17. e5 {[%emt 0:05:52]} Ne8 {[%emt 0:13:15]} 18. O-O {[%emt 0:02:54]} b4 {[%emt 0:02:52]} 19. Ne4 {[%emt 0:02:55]} f5 {[%emt 0:05:07]} 20. Nf2 {[%emt 0:05:22]} a5 {[%emt 0:02:55]} 21. Nd3 {[%emt 0:02:02]} Ra7 {[%emt 0:04:14]} 22. Bd1 {[%emt 0:04:49]} h6 {[%emt 0:03:07]} 23. Be1 {[%emt 0:06:16]} Bc8 {[%emt 0:02:09]} 24. Bh4 {[%emt 0:04:49]} Ba6 {[%emt 0:01:45]} 25. Re1 {[%emt 0:04:12]} Bc8 {[%emt 0:04:39]} 26. Ba4 {[%emt 0:03:06]} Kf7 {[%emt 0:08:12]} 27. Re2 {[%emt 0:03:19]} dxe5 {[%emt 0:03:18]} 28. Nfxe5+ {[%emt 0:01:42]} Bxe5 {[%emt 0:00:28]} 29. Nxe5+ {[%emt 0:00:07]} Kg7 {[%emt 0:00:10]} 30. Nd3 {[%emt 0:01:12]} Nf6 {[%emt 0:02:07]} 31. Nxc5 {[%emt 0:02:50]} Rc7 {[%emt 0:00:42]} 32. Bxf6+ {[%emt 0:01:36]} Rxf6 {[%emt 0:01:58]} 33. Nb3 {[%emt 0:02:43]} Bb7 {[%emt 0:03:38]} 34. Nxa5 {[%emt 0:01:51]} Bxd5 {[%emt 0:00:52]} 35. Rce1 {[%emt 0:01:34]} Be4 {[%emt 0:01:11]} 36. Bc2 {[%emt 0:03:56]} Bxc2 {[%emt 0:00:15]} 37. Rxc2 {[%emt 0:00:05]} Ra6 {[%emt 0:00:51]} 38. Nb3 {[%emt 0:01:51]} Rxa2 {[%emt 0:00:07]} 39. Nd4 {[%emt 0:00:41]} Kf7 {[%emt 0:01:09]} 40. b3 {[%emt 0:00:47]} Rxc2 {[%emt 0:00:38]} 41. Nxc2 {[%emt 0:00:05]} Nc6 {[%emt 0:00:30]} 42. Rd1 {[%emt 0:00:49]} Ra7 {[%emt 0:00:00]} 43. Nd4 {[%emt 0:00:00]} Rd7 {[%emt 0:00:00]} 44. Nxc6 {[%emt 0:00:00]} Rxd1+ {[%emt 0:00:00]} 45. Kf2 {[%emt 0:00:00]} Rb1 {[%emt 0:00:00]} 46. Nxb4 {[%emt 0:00:00]} Rxb3 {[%emt 0:00:00]} 47. Nc6 {[%emt 0:00:00]} Rc3 {[%emt 0:00:00]} 48. Ke2 {[%emt 0:00:00]} Kf6 {[%emt 0:00:00]} 49. Ne5 {[%emt 0:00:00]} g5 {[%emt 0:00:00]} 50. Nd7+ {[%emt 0:00:00]} Ke6 {[%emt 0:00:00]} 51. Nb6 {[%emt 0:00:00]} gxf4 {[%emt 0:00:00]} 52. Kd2 {[%emt 0:00:00]} Rg3 {[%emt 0:00:00]} 53. Nd5 {[%emt 0:00:00]} Rxg2+ {[%emt 0:00:00]} 54. Ke1 {[%emt 0:00:00]} f3 {[%emt 0:00:00]} 55. Nf4+ {[%emt 0:00:00]} Kd6 {[%emt 0:00:00]} 56. Nxg2 {[%emt 0:00:00]} fxg2 {[%emt 0:00:00]} 0-1